Cogmind - Beta 16 @@@ ROGUE MODE // 2025.11.05 @ 15:16:36 // Winter2019/RPGLIKE Player: Rentaro Result: Destroyed by OF-77Y(R) with Subdweller Machine Gun Performance ------------- Evolutions (0) 0 Regions Visited (2) 400 Robots Destroyed (22) 110 Value Destroyed (625) 625 Prototype IDs (4) 80 Alien Tech Used (0) 0 Bonus (0) 0 TOTAL SCORE: 1215 Bonus ------- None Cogmind --------- Core Integrity 0/600 Matter 326/350 Energy 194/200 System Corruption 0% Temperature Cool (0) Movement Flying (37) Location -10/Subcaves Parts ------- > --- POWER (1) -------- Subdweller Power Source > --- PROPULSION (2) --- Flight Unit Flight Unit > --- UTILITY (3) ------ Heat Sink Visual Processing Unit Signal Interpreter > --- WEAPON (2) ------- Subdweller Laser Barrage Gun > --- INVENTORY (2) ---- Datajack Mining Claw Peak State ------------ > --- POWER ------------ Subdweller Power Source > --- PROPULSION ------- Flight Unit Flight Unit > --- UTILITY ---------- Heat Sink Visual Processing Unit Signal Interpreter > --- WEAPON ----------- Subdweller Laser Barrage Gun > --- INVENTORY -------- Medium Laser Datajack [Rating: 13] Favorites ----------- Power Light Ion Engine Engine Light Ion Engine Power Core Light Nuclear Core Propulsion Flight Unit Wheel Wheel Flight Unit Flight Unit Utility Signal Interpreter Device Heat Sink Processor Signal Interpreter Weapon Small Laser Energy Gun Small Laser Ballistic Gun Barrage Gun Slashing Weapon Mining Claw Special Melee Weapon Datajack Build | -11 -10 -10 ------- Run | Yrd Mat Sub Slots Evolved 4 | 3 1 . Power . | . . . Propulsion 1 | 1 . . Utility 2 | 1 1 . Weapon 1 | 1 . . Parts Attached 20 | 5 11 4 Power 3 | 1 . 2 Engine 2 | 1 . 1 Core 1 | . . 1 Reactor . | . . . Propulsion 5 | 2 3 . Treads . | . . . Leg . | . . . Wheel 2 | 2 . . Hover . | . . . Flight 3 | . 3 . Utility 5 | . 5 . Device 2 | . 2 . Storage . | . . . Processor 3 | . 3 . Hackware . | . . . Protection . | . . . Artifact . | . . . Weapon 7 | 2 3 2 Energy Gun 4 | 2 1 1 Energy Cannon . | . . . Ballistic Gun 1 | . . 1 Ballistic Cannon . | . . . Launcher . | . . . Special Weapon . | . . . Impact Weapon . | . . . Slashing Weapon 1 | . 1 . Piercing Weapon . | . . . Special Melee Weapon 1 | . 1 . Unidentified Prototypes . | . . . Parts Lost . | . . . Power . | . . . Propulsion . | . . . Utility . | . . . Weapon . | . . . Highest Loss Streak . | . . . To Critical Strikes . | . . . Average Backups 1 | . . 2 Power . | . . . Propulsion . | . . . Utility . | . . . Weapon . | . . 1 Tool/Special . | . . . Unused Backups . | . . . Power . | . . . Propulsion . | . . . Utility . | . . . Weapon . | . . . Tool/Special . | . . . Average Slot Usage (%) 95 | . 94 100 Engine 12 | . 13 8 Wheel 4 | . 5 . Flight 21 | . 20 25 Device 9 | . 8 12 Processor 19 | . 17 25 Energy Gun 21 | . 22 19 Slashing Weapon 2 | . 2 3 Special Melee Weapon 1 | . 1 . Peak Build Rating 13 | 5 9 13 Average Rating 7 | 3 7 10 On Entrance 4 | . 5 9 Avg Prop Armor Cover (%) 7 | . 7 . Naked Turns . | . . . Heaviest Build 13 | 6 7 13 Greatest Support 25 | 25 25 13 Greatest Overweight (x) . | . . . Average Overweight (x) . | . . . Largest Inventory Capacity 2 | 2 2 2 Average Capacity 2 | 2 2 2 Most Carried 2 | . 2 2 Average Carried 1 | . . 1 Final Capacity 2 | 2 2 2 Final Carried 2 | . 2 2 Class Distribution -------------------- 93% | Mutant 6% | Scavenger-Mutant Dominant Class ---------------- Mutant | -10/Materials Mutant | -10/Subcaves Resources | -11 -10 -10 ----------- Run | Yrd Mat Sub Matter Collected 574 | 277 227 70 Remotely . | . . . Salvage Created 761 | . 610 151 Parts 44 | . 36 8 Haulers Intercepted 2 | . 2 . Recyclers Shooed 3 | . 3 . Parts Field Recycled . | . . . Retrieved Matter . | . . . Parts Self-Destructed 3 | . . 3 Prevented . | . . . Parts Restored . | . . . Kills | -11 -10 -10 ------- Run | Yrd Mat Sub Combat Hostiles Destroyed 16 | . 13 3 Guns 16 | . 13 3 Classes Destroyed 6 | . 5 1 Worker 2 | . 2 . Hauler 2 | . 2 . Watcher 2 | . 2 . Swarmer 3 | . 3 . Grunt 12 | . 10 2 Subdweller 1 | . . 1 Best Kill Streak 5 | . 5 2 Combat Bots Only 4 | . 4 2 Max Kills in Single Turn 2 | . 2 1 Gunslinging . | . . . Exploded . | . . . Melee . | . . . Uniques/NPCs Destroyed . | . . . Combat | -11 -10 -10 -------- Run | Yrd Mat Sub Hostile Shots Fired 114 | . 87 27 Missed 42 | . 27 15 Hits 72 | . 60 12 Projectile 72 | . 60 12 AOE 2 | . . 2 Critical Strikes 3 | . 1 2 Damage Taken 932 | . 639 293 Core 780 | . 525 255 Absorbed by Shields . | . . . Redirected to Core 496 | . 365 131 Core Remaining (%) 100 | 100 . . Volleys Fired 83 | . 70 13 Largest 2 | . 2 2 Hottest 90 | . 90 90 Shots Fired 154 | . 129 25 Gun 154 | . 129 25 Cannon . | . . . Launcher . | . . . Special . | . . . Kinetic 6 | . . 6 Thermal 148 | . 129 19 Explosive . | . . . Electromagnetic . | . . . Robot Hit Streak 8 | . 8 5 Robot Miss Streak 4 | . 4 2 Penetration Max . | . . . Secondary Targets . | . . . Shots Hit Robots 96 | . 79 17 Core Hits 40 | . 33 7 Critical Kills . | . . . Critical Parts Destroyed . | . . . Critical Strikes 1 | . 1 . Burn 1 | . 1 . Melee Attacks 14 | . 11 3 Impact . | . . . Slashing 6 | . 3 3 Piercing . | . . . Sneak Attacks 7 | . 7 . Combat Hostiles . | . . . Follow-up Attacks . | . . . Damage Inflicted 1240 | . 968 272 Guns 1131 | . 859 272 Cannons . | . . . Explosions 109 | . 109 . Melee . | . . . Ramming . | . . . Kinetic 101 | . . 101 Thermal 1030 | . 859 171 Explosive 84 | . 84 . Electromagnetic 25 | . 25 . Impact . | . . . Slashing . | . . . Piercing . | . . . Highest Corruption . | . . . Average Corruption . | . . . Corruption Purged . | . . . Corruption Blocked . | . . . Overload Shots . | . . . Overflow Damage 12 | . 12 . Projectiles . | . . . Explosions 12 | . 12 . Melee . | . . . Knockbacks . | . . . Impact . | . . . Kinetic . | . . . Secondary . | . . . Self-Inflicted Damage . | . . . Shots . | . . . Rammed . | . . . Targets Rammed . | . . . Kicked . | . . . Crushed . | . . . Highest Temperature 445 | . 445 9 Average Temperature 148 | . 148 9 Received Heat Transfer 270 | . 228 42 Effects 8 | . 8 . Shutdowns 2 | . 2 . Interference 3 | . 3 . Matter Decay 1 | . 1 . Damage (major) 2 | . 2 . Siege Activations . | . . . Martial Activations . | . . . Shielding Activations . | . . . Robots Disrupted . | . . . Combat Hostiles . | . . . Robots Corrupted . | . . . Combat Hostiles . | . . . Parts Fried . | . . . Impact Corruptions . | . . . Robots Melted . | . . . Combat Hostiles . | . . . Parts Melted 4 | . 4 . Heat Transferred 2715 | . 2367 348 Parts Sabotaged . | . . . Parts Stolen . | . . . Parts Stripped . | . . . Power Chain Reactions 1 | . 1 . Alert | -11 -10 -10 ------- Run | Yrd Mat Sub Maximum Alert Level 1 | . 1 . Low Security (%) 74 | 100 72 . Level 1 25 | . 27 . Level 2 . | . . . Level 3 . | . . . Level 4 . | . . . Level 5 . | . . . High Security . | . . . Max Security . | . . . Peak Influence 285 | . 285 . Initial . | . . . Average 146 | . 154 . Influence Increases 612 | . 562 50 Destroy 0b10 Robot/C 300 | . 260 40 Destroy 0b10 Robot/NC 30 | . 30 . Destroy Leader 78 | . 68 10 Successful Hack 59 | . 59 . Disable Machine 105 | . 105 . Destroy Structure 25 | . 25 . Lose Combat Pursuer 15 | . 15 . Influence Decreases 544 | . 354 190 Entered New Map 100 | . . 100 Time Decay 444 | . 354 90 Squads Dispatched 4 | . 4 . Investigation 2 | . 2 . Extermination . | . . . Reinforcement 2 | . 2 . Assault . | . . . Garrison . | . . . Intercept . | . . . Searches Triggered . | . . . Construction Impeded . | . . . Haulers Reinforced . | . . . Active Scanning Responses . | . . . Cargo Convoy Interrupts . | . . . Stealth | -11 -10 -10 --------- Run | Yrd Mat Sub Distress Signals . | . . . Communications Jammed . | . . . Distress Signals . | . . . Times Spotted 30 | . 25 5 Peak Tracking Total 6 | . 6 3 Tactical Retreats 2 | . 2 . Traps | -11 -10 -10 ------- Run | Yrd Mat Sub Traps Triggered . | . . . Indirectly . | . . . Trap Hack Attempts . | . . . Triggered . | . . . Disarmed . | . . . Reprogrammed . | . . . Reused . | . . . Traps Extracted . | . . . Installed . | . . . Triggered . | . . . Machines | -11 -10 -10 ---------- Run | Yrd Mat Sub Machines Disabled 7 | . 7 . Max in Single Turn 4 | . 4 . Machines Repaired . | . . . Machines Dismantled . | . . . Machines Sabotaged . | . . . Overloaded Fab Kills . | . . . Hacking | -11 -10 -10 --------- Run | Yrd Mat Sub Machines Accessed 9 | . 8 1 Terminals 6 | . 6 . Fabricators . | . . . Repair Stations . | . . . Recycling Units 2 | . 2 . Scanalyzers . | . . . Garrison Access . | . . . Total Hacks 32 | . 28 4 Successful 22 | . 18 4 Failed 10 | . 10 . Catastrophic 1 | . 1 . Database Lockouts . | . . . Manual 13 | . 13 . Terminals 22 | . 22 . Fabricators . | . . . Repair Stations . | . . . Recycling Units 6 | . 6 . Scanalyzers . | . . . Garrison Access . | . . . Terminal Hacks 12 | . 8 4 Record 4 | . . 4 Robot Analysis 2 | . 2 . Prototype ID Bank 2 | . 2 . Alert Level 1 | . 1 . Hauler Manifests 1 | . 1 . Registered Prototypes 1 | . 1 . Zone Layout 1 | . 1 . Fabricator Hacks . | . . . Repair Station Hacks . | . . . Recycling Unit Hacks 2 | . 2 . Retrieve Components 2 | . 2 . Scanalyzer . | . . . Garrison Access Hacks . | . . . Unauthorized Hacks 8 | . 8 . Terminals 7 | . 7 . Botnet 4 | . 4 . Disrupt 2 | . 2 . Operators 1 | . 1 . Fabricators . | . . . Repair Stations . | . . . Recycling Units 1 | . 1 . Reject 1 | . 1 . Scanalyzers . | . . . Garrison Access . | . . . Data Cores Recovered . | . . . Used . | . . . Hacking Detections 7 | . 7 . Full Trace Events 2 | . 2 . Feedback Events . | . . . Feedback Blocked . | . . . Robot Schematics Acquired . | . . . Robots Built . | . . . Authchips . | . . . Time . | . . . Total Robot Build Rating . | . . . Part Schematics Acquired . | . . . Parts Built . | . . . Authchips . | . . . Time . | . . . Total Part Build Rating . | . . . Part Studies Acquired . | . . . Parts Repaired . | . . . Time . | . . . Parts Recycled . | . . . Recycled Matter . | . . . Retrieved Matter . | . . . Retrieved Components 9 | . 9 . Parts Scanalyzed . | . . . Part Schematics Acquired . | . . . Parts Damaged . | . . . Bothacking | -11 -10 -10 ------------ Run | Yrd Mat Sub Used RIF Installer . | . . . Robots Hacked 5 | . 5 . Non-combat 5 | . 5 . Combat . | . . . Robot Hacks Applied 6 | . 6 . parse_system 1 | . 1 . no_distress 4 | . 4 . find_recycling 1 | . 1 . Relay Couplers Released . | . . . Fabnet Peak Effective % . | . . . Robots Rewired . | . . . Allies Hacked . | . . . Hacks Repelled . | . . . Allies | -11 -10 -10 -------- Run | Yrd Mat Sub Total Allies . | . . . Largest Group . | . . . Highest-Rated Group . | . . . Highest-Rated Ally . | . . . Total Orders . | . . . Ally Attacks . | . . . Total Damage . | . . . Kills . | . . . Allies Corrupted . | . . . Allies Melted . | . . . Intel | -11 -10 -10 ------- Run | Yrd Mat Sub Active Infowar (turns) 390 | . 198 192 Optics 390 | . 198 192 Robot Analysis Total 2 | . 2 . Derelict Logs Recovered 1 | . . 1 Drone Launches . | . . . Drone Recoveries . | . . . Exploration | -11 -10 -10 ------------- Run | Yrd Mat Sub Turns Passed 1080 | 45 843 192 Spaces Moved 1165 | 47 807 311 Core 1 | 1 . . Treads . | . . . Legs . | . . . Wheels 173 | 46 127 . Hover . | . . . Flight 991 | . 680 311 Fastest Speed 37 | 50 37 37 Average Speed 43 | 79 43 37 Slowest Speed 80 | 80 80 37 Overloaded Moves . | . . . Propulsion Burnouts . | . . . Robots Hopped 6 | . 4 2 Potential Cave-ins . | . . . Cave-ins Triggered . | . . . Exploration Rate (%) 37 | 3 95 14 Regions Visited 2 Branch Regions 1 Pre-discovered Areas 1 | . . 1 Known Exits Taken 1 | . 1 . Unknown Exits Taken 1 | 1 . . Scrap Searched 2 | . . 2 Spaces Dug 2 | . 2 . Terrain Destroyed 26 | . 26 . Melee 2 | . 2 . Projectile . | . . . AOE 24 | . 24 . Terrain Rammed . | . . . Walls Destroyed . | . . . Machines Disabled . | . . . Actions | -11 -10 -10 --------- Run | Yrd Mat Sub Total 1554 | 51 1148 355 Wait 258 | . 239 19 Move 1151 | 46 798 307 Hop 6 | . 4 2 Pick Up 3 | . 2 1 Fast Attach 11 | 5 5 1 Attach . | . . . Detach 1 | . 1 . Swap 13 | . 7 6 Drop 5 | . 2 3 Fire 83 | . 70 13 Melee 14 | . 11 3 Ram . | . . . Kick . | . . . Crush . | . . . Escape Stasis . | . . . Rewire . | . . . Trap . | . . . Miscellaneous 9 | . 9 . Route ------- -11/Scrapyard -10/Materials (discovered 5 exits: *Mat x3 / *Min / *Sub) -10/Subcaves (discovered 3 exits: *Mat x2 / Rec) History --------- Turn | Location | Event 1 | -11/Scrapyard | Upgraded with Propulsion slot (x1) 1 | -11/Scrapyard | Upgraded with Utility slot (x1) 1 | -11/Scrapyard | Upgraded with Weapon slot (x1) 18 | -11/Scrapyard | Discovered new exit (range 16) 46 | -11/Scrapyard | Entered Materials 323 | -10/Materials | Build established: Mutant 342 | -10/Materials | Core integrity fell below 50% 359 | -10/Materials | Discovered new exit (range 10) 363 | -10/Materials | Identified exit to Materials 402 | -10/Materials | Discovered new exit (range 5) 421 | -10/Materials | Identified exit to Subcaves 483 | -10/Materials | Reached level 2 493 | -10/Materials | Discovered new exit (range 16) 502 | -10/Materials | Identified exit to Mines 541 | -10/Materials | Discovered exit to Materials (range 14) 554 | -10/Materials | Upgraded with Utility slot (x1) 646 | -10/Materials | Derelicts attacked the area 656 | -10/Materials | Discovered exit to Materials (range 8) 889 | -10/Materials | Entered Subcaves 890 | -10/Subcaves | Approached by a straggling Scientist 891 | -10/Subcaves | Reached level 3 907 | -10/Subcaves | Discovered new exit (range 3) 947 | -10/Subcaves | A swath of the cavern ceiling suddenly collapsed 995 | -10/Subcaves | Visited Clippyterm 996 | -10/Subcaves | Learned location of Deep Caves (-6) 996 | -10/Subcaves | Identified exit to Recycling 996 | -10/Subcaves | Identified exit to Materials 1045 | -10/Subcaves | Ambushed by Subdweller buried in earth 1049 | -10/Subcaves | Core integrity fell below 20% 1081 | -10/Subcaves | Destroyed by OF-77Y(R) with Subdweller Machine Gun Last Messages --------------- 01000_ Acquired 20 matter. 01019_ S7-QBS(u) builds Twisted Machinery. [Achievement: Do Not Disturb] 01046_ OF-77Y(R): "ARGHSUB!" 01048_ KQ-DXX(R) destroyed. 01054_ Searching scrap... 01054_ Found Sub. Laser. 01054_ Found Barrage Gun. 01054_ Found 41 Matter. 01055_ Searching scrap... 01055_ Found Sub. Power Source. 01055_ Found 38 Matter. 01056_ Acquired Barrage Gun. 01058_ Acquired Sub. Laser. 01059_ Dropped Med. Laser. 01060_ Acquired Mining Claw. 01061_ Acquired 30 matter. 01065_ CK-5IE(R) destroyed. 01080_ Subatomizers dissect the Sub. Power Source. [Achievement: Back For More] Map ----- +----------------------------------------------------+ | ???## #?????????????????????????????>??????????? | | #### ##????????????????????????????????????????? | | # #####?????????????????????????????????????????? | | #?????????????????????????????????????????????? | | ##?????????????????????????????????????????????? | | #??????????????????????????????????????????????? | | ##?????????????????????????????????????????????? | | #?????????????????????????????????????????????? | | #?????????????????????????????????????????????? | | #?????????????????????????????????????????????? | | #??????????????????????????#??????????????????? | | # ##????????????????????????? ???????????????????? | | ###?????????????????????????? ???????????????????? | | ????????????????????????????? ???????????????????? | | ????????????????????????????? ???????????????????? | | ???????????????????????###?? ##?#????????????????? | | #?????????????????????## ##? "#"#????????????????? | | #??????????????####?###" "#?" ????????????????? | | #??????????????# ### "## " #?????????????????? | | #??????????????# #%#< ""u#????????????????????? | | #??????????????##*[ [ " #????? #?????????????? | | #??????????????#% "##< " ### #??????????????? | | #??????????????# ## " #??????????????? | | ##?????????????##### ## # ##??????????????? | | ##????????????????# R ! #????????????????????? | | ##??????????????## ## *@###????????????????????? | | #??????????????# ?###%#??????????????????????? | | ##??????????????# ??##%###????????????????????? | | ##???????????????## ### =#"#????????????????????? | | ##?????????????????# ## "#????????????????????? | | #??????????????????# #"; "#????????????????????? | | #??????????????????# "; ;"#????????????????????? | | #??????????????????# "#????????????????????? | | ##??????????????## # "#?####???????????????? | | ###????????????# !"### #######?????????? | | ############?# !%= #?????????? | | ## ## # ###" =* ###????????? | | "" ### # #????????? | | % ##?###########????????? | | # ## ## ## #?????????????????????? | | ############### #????????????????????? | | ??????????????## #???????????????????? | | ???????????????##### ### #???????????????????? | | ???????????????????####?######???????????????????? | | ?????????????????????????????????????????????????? | | ?????????????????????????????????????????????????? | | ?????????????????????????????????????????????????? | | ?????????????????????????????????????????????????? | | ?????????????????????????????????????????????????? | | ?????????????????????????????????????????????????? | +----------------------------------------------------+ Best States ------------- Heat Dissipation 35 Energy Generation 15 Energy Capacity 200 Matter Stores 350 Matter Capacity 350 Sight Range 18 Robot Scan Range 2 Terrain Scan Density 10 Evasion (%) 62 Targeting Accuracy 5 Item Schematics ----------------- None Robot Schematics ------------------ None Fabricated ------------ Nothing Repaired ---------- Nothing Studied --------- None Alien Tech Used ----------------- None Achievements -------------- Back For More Do Not Disturb Challenges ------------ None RPGLIKE | -11 -10 -10 --------- Run | Yrd Mat Sub Levels Raised 2 | . 1 1 XP Earned 6565 | 3000 2315 1250 XP Spent 3800 | 2600 1200 . Upgrades 10 | 8 2 . Propulsion Slot 1 | 1 . . Utility Slot 2 | 1 1 . Weapon Slot 1 | 1 . . Matter Storage 1 | 1 . . Mass Support 1 | 1 . . Inventory Capacity 2 | 2 . . Sensor Range 1 | 1 . . Ranged Accuracy 1 | . 1 . Protomatter Created 85 | . 85 . Integrity Restored 187 | . 187 . Core 175 | . 175 . Parts 12 | . 12 . Protomatter Decayed 22 | . 22 . Game ------ Seed AssembledChipTrident Manual? 0 Play Time 00:22:47 Cumulative 134.7 hours Start 2025.11.05 @ 13:54:23 End 2025.11.05 @ 15:16:36 Sessions 1 Manual Loads 0 Difficulty Rogue Special Mode Winter2019/RPGLIKE Game No. 50 Rogue 50 Adventurer 0 Explorer 0 Win Type - Total 5 Types 2/0/1/2/0/0/0/0/0/0 Lore% 49 Gallery% 46 Achievement% 45 Wizard Run 0 Options --------- Layout 2 ASCII 0 Keyboard 0 Movement Mouse Keybinds 1 Fullscreen 2 Font 20/X11 Map View 64x51 Zoom Use 0% Tactical HUD 1 Map Filters NONE Filters NONE Steam 1 RUN: 97ce95e5-619c-4707-b453-d5f2a0e0157e